[Event "Titled Tuesday Blitz September 13 Early 2022"]
[White "Indjic, Aleksandar"]
[Black "Andreikin, Dmitry"]
[WhiteFideId "911925"]
[BlackFideId "4158814"]
[WhiteElo "2592"]
[BlackElo "2736"]
[Result "1-0"]
[Round "08"]
[TimeControl "180+1"]
[Date "2022.09.13"]
[WhiteClock "0:00:11"]
[BlackClock "0:00:37"]

1. e4 {[%clk 0:02:55]}  c5 {[%clk 0:02:58]} 2. Nc3 {[%clk 0:02:54]}  a6 {[%clk 0:02:58]} 3. g3 {[%clk 0:02:53]}  b5 {[%clk 0:02:59]} 4. Bg2 {[%clk 0:02:54]}  Bb7 {[%clk 0:02:59]} 5. Nh3 {[%clk 0:02:54]}  h5 {[%clk 0:02:56]} 6. O-O {[%clk 0:02:53]}  h4 {[%clk 0:02:56]} 7. g4 {[%clk 0:02:53]}  b4 {[%clk 0:02:50]} 8. Na4 {[%clk 0:02:50]}  e5 {[%clk 0:02:48]} 9. f4 {[%clk 0:02:47]}  Nc6 {[%clk 0:02:45]} 10. c3 {[%clk 0:02:31]}  a5 {[%clk 0:02:40]} 11. fxe5 {[%clk 0:02:26]}  Ba6 {[%clk 0:02:24]} 12. d4 {[%clk 0:02:08]}  Bxf1 {[%clk 0:02:22]} 13. Bxf1 {[%clk 0:02:07]}  bxc3 {[%clk 0:02:15]} 14. bxc3 {[%clk 0:02:06]}  cxd4 {[%clk 0:02:15]} 15. cxd4 {[%clk 0:02:07]}  Rb8 {[%clk 0:02:14]} 16. Be3 {[%clk 0:02:03]}  Nge7 {[%clk 0:02:07]} 17. Nf4 {[%clk 0:01:55]}  g6 {[%clk 0:01:58]} 18. Nd5 {[%clk 0:01:33]}  Nxd5 {[%clk 0:01:51]} 19. exd5 {[%clk 0:01:34]}  Nb4 {[%clk 0:01:51]} 20. d6 {[%clk 0:01:34]}  Nd5 {[%clk 0:01:45]} 21. Bd2 {[%clk 0:01:23]}  Bh6 {[%clk 0:01:44]} 22. Bxh6 {[%clk 0:01:17]}  Rxh6 {[%clk 0:01:45]} 23. Qd2 {[%clk 0:01:17]}  g5 {[%clk 0:01:44]} 24. Nc5 {[%clk 0:01:08]}  h3 {[%clk 0:01:37]} 25. a4 {[%clk 0:00:47]}  Rh4 {[%clk 0:01:30]} 26. Be2 {[%clk 0:00:47]}  Nf4 {[%clk 0:01:23]} 27. Rf1 {[%clk 0:00:42]}  Rb4 {[%clk 0:01:22]} 28. Rxf4 {[%clk 0:00:33]}  gxf4 {[%clk 0:01:20]} 29. Qxf4 {[%clk 0:00:28]}  Qa8 {[%clk 0:01:09]} 30. Ne4 {[%clk 0:00:10]}  Rxd4 {[%clk 0:01:07]} 31. Qg5 {[%clk 0:00:10]}  Kf8 {[%clk 0:00:44]} 32. Qxh4 {[%clk 0:00:10]}  Kg7 {[%clk 0:00:37]} 33. Qg5+ {[%clk 0:00:11]}  Kf8 {[%clk 0:00:37]} 34. Qh6+ {[%clk 0:00:11]} 1-0


[Site "https://www.chess.com"]

[Event "Titled Tuesday Blitz September 13 Early 2022"]
[White "Kamsky, Gata"]
[Black "Narayanan, Srinath"]
[WhiteFideId "2000024"]
[BlackFideId "5018420"]
[WhiteElo "2666"]
[BlackElo "2459"]
[Result "1-0"]
[Round "08"]
[TimeControl "180+1"]
[Date "2022.09.13"]
[WhiteClock "0:01:21"]
[BlackClock "0:00:33"]

1. e4 {[%clk 0:03:00]}  c5 {[%clk 0:02:57]} 2. Nc3 {[%clk 0:02:58]}  Nc6 {[%clk 0:02:56]} 3. Bc4 {[%clk 0:02:56]}  g6 {[%clk 0:02:48]} 4. d3 {[%clk 0:02:55]}  Bg7 {[%clk 0:02:48]} 5. Bg5 {[%clk 0:02:55]}  a6 {[%clk 0:02:35]} 6. a3 {[%clk 0:02:54]}  b5 {[%clk 0:02:34]} 7. Ba2 {[%clk 0:02:53]}  Bb7 {[%clk 0:02:33]} 8. f4 {[%clk 0:02:46]}  Nd4 {[%clk 0:02:30]} 9. Nf3 {[%clk 0:02:43]}  Qc7 {[%clk 0:02:27]} 10. O-O {[%clk 0:02:38]}  e6 {[%clk 0:02:20]} 11. Nxd4 {[%clk 0:02:29]}  cxd4 {[%clk 0:02:18]} 12. Ne2 {[%clk 0:02:29]}  Rc8 {[%clk 0:02:16]} 13. Rc1 {[%clk 0:02:27]}  f5 {[%clk 0:02:04]} 14. exf5 {[%clk 0:01:56]}  gxf5 {[%clk 0:02:05]} 15. Ng3 {[%clk 0:01:56]}  Qc6 {[%clk 0:02:03]} 16. Qh5+ {[%clk 0:01:53]}  Kf8 {[%clk 0:02:04]} 17. Rf2 {[%clk 0:01:52]}  Qc5 {[%clk 0:01:35]} 18. b4 {[%clk 0:01:32]}  Qc3 {[%clk 0:01:35]} 19. Nxf5 {[%clk 0:01:33]}  Qxa3 {[%clk 0:01:31]} 20. Rcf1 {[%clk 0:01:26]}  Qxa2 {[%clk 0:00:41]} 21. Nd6 {[%clk 0:01:24]}  Nh6 {[%clk 0:00:35]} 22. Bxh6 {[%clk 0:01:22]}  Ke7 {[%clk 0:00:34]} 23. Nxc8+ {[%clk 0:01:20]}  Rxc8 {[%clk 0:00:33]} 24. Bxg7 {[%clk 0:01:21]} 1-0


[Site "https://www.chess.com"]

[Event "Titled Tuesday Blitz September 13 Early 2022"]
[White "Kevlishvili, Robby"]
[Black "Lin, Dachey"]
[WhiteFideId "1040634"]
[BlackFideId "2029650"]
[WhiteElo "2585"]
[BlackElo "2313"]
[Result "1-0"]
[Round "08"]
[TimeControl "180+1"]
[Date "2022.09.13"]
[WhiteClock "0:01:23"]
[BlackClock "0:00:32"]

1. c4 {[%clk 0:03:00]}  g6 {[%clk 0:03:00]} 2. Nc3 {[%clk 0:03:00]}  Bg7 {[%clk 0:03:01]} 3. Nf3 {[%clk 0:03:00]}  c5 {[%clk 0:03:02]} 4. g3 {[%clk 0:02:59]}  Nc6 {[%clk 0:03:02]} 5. Bg2 {[%clk 0:03:00]}  Nf6 {[%clk 0:03:02]} 6. O-O {[%clk 0:03:00]}  O-O {[%clk 0:03:03]} 7. d3 {[%clk 0:03:01]}  d6 {[%clk 0:03:03]} 8. Qd2 {[%clk 0:03:01]}  b6 {[%clk 0:02:50]} 9. b3 {[%clk 0:03:01]}  Bb7 {[%clk 0:02:51]} 10. Bb2 {[%clk 0:03:02]}  Qd7 {[%clk 0:02:48]} 11. Rfd1 {[%clk 0:03:02]}  e5 {[%clk 0:02:46]} 12. e3 {[%clk 0:02:55]}  Rfe8 {[%clk 0:02:41]} 13. Qe2 {[%clk 0:02:54]}  Rad8 {[%clk 0:02:40]} 14. Ng5 {[%clk 0:02:54]}  h6 {[%clk 0:02:34]} 15. Nge4 {[%clk 0:02:54]}  Nh7 {[%clk 0:02:33]} 16. Nd5 {[%clk 0:02:53]}  f5 {[%clk 0:02:30]} 17. Nec3 {[%clk 0:02:52]}  Ng5 {[%clk 0:02:13]} 18. Rab1 {[%clk 0:02:50]}  Rf8 {[%clk 0:02:07]} 19. f4 {[%clk 0:02:50]}  Ne6 {[%clk 0:02:05]} 20. Kh1 {[%clk 0:02:50]}  Rde8 {[%clk 0:02:02]} 21. Qf2 {[%clk 0:02:50]}  Kh7 {[%clk 0:01:57]} 22. a3 {[%clk 0:02:50]}  Qf7 {[%clk 0:01:48]} 23. b4 {[%clk 0:02:48]}  g5 {[%clk 0:01:25]} 24. b5 {[%clk 0:02:29]}  Ncd8 {[%clk 0:01:23]} 25. a4 {[%clk 0:02:24]}  Qh5 {[%clk 0:01:21]} 26. a5 {[%clk 0:02:23]}  exf4 {[%clk 0:01:15]} 27. gxf4 {[%clk 0:02:21]}  gxf4 {[%clk 0:01:15]} 28. exf4 {[%clk 0:02:17]}  Bd4 {[%clk 0:01:07]} 29. Qf3 {[%clk 0:02:16]}  Qxf3 {[%clk 0:01:08]} 30. Bxf3 {[%clk 0:02:16]}  Nxf4 {[%clk 0:01:08]} 31. axb6 {[%clk 0:02:16]}  axb6 {[%clk 0:01:08]} 32. Na4 {[%clk 0:02:05]}  Re3 {[%clk 0:01:00]} 33. Bg2 {[%clk 0:01:43]}  Re2 {[%clk 0:00:54]} 34. Nxf4 {[%clk 0:01:42]}  Rxg2 {[%clk 0:00:37]} 35. Nxg2 {[%clk 0:01:41]}  Rg8 {[%clk 0:00:37]} 36. Rd2 {[%clk 0:01:40]}  Be3 {[%clk 0:00:37]} 37. Re2 {[%clk 0:01:38]}  f4 {[%clk 0:00:38]} 38. Nxb6 {[%clk 0:01:24]}  f3 {[%clk 0:00:32]} 39. Rxe3 {[%clk 0:01:23]}  Rxg2 {[%clk 0:00:32]} 40. Nd5 {[%clk 0:01:23]} 1-0


[Site "https://www.chess.com"]

[Event "Titled Tuesday Blitz September 13 Early 2022"]
[White "Kosakowski, Jakub"]
[Black "Harsh Suresh"]
[WhiteFideId "1185080"]
[BlackFideId "45018464"]
[WhiteElo "2453"]
[BlackElo "2070"]
[Result "1-0"]
[Round "08"]
[TimeControl "180+1"]
[Date "2022.09.13"]
[WhiteClock "0:01:14"]
[BlackClock "0:00:46"]

1. e4 {[%clk 0:02:58]}  c6 {[%clk 0:02:57]} 2. d4 {[%clk 0:02:57]}  d5 {[%clk 0:02:57]} 3. e5 {[%clk 0:02:56]}  Bf5 {[%clk 0:02:57]} 4. Nc3 {[%clk 0:02:50]}  e6 {[%clk 0:02:51]} 5. g4 {[%clk 0:02:51]}  Bg6 {[%clk 0:02:50]} 6. Nge2 {[%clk 0:02:51]}  h6 {[%clk 0:02:45]} 7. h4 {[%clk 0:02:42]}  c5 {[%clk 0:02:43]} 8. Nf4 {[%clk 0:02:42]}  Bh7 {[%clk 0:02:42]} 9. g5 {[%clk 0:02:14]}  Nc6 {[%clk 0:02:34]} 10. Qh5 {[%clk 0:02:11]}  Nxd4 {[%clk 0:02:22]} 11. Nxe6 {[%clk 0:02:10]}  Nxe6 {[%clk 0:02:09]} 12. Bb5+ {[%clk 0:02:09]}  Ke7 {[%clk 0:02:09]} 13. Qf3 {[%clk 0:02:05]}  Nc7 {[%clk 0:02:09]} 14. gxh6 {[%clk 0:02:03]}  gxh6 {[%clk 0:02:07]} 15. Bf4 {[%clk 0:02:01]}  Nxb5 {[%clk 0:02:01]} 16. Nxd5+ {[%clk 0:01:58]}  Ke8 {[%clk 0:02:00]} 17. O-O-O {[%clk 0:01:58]}  Nd4 {[%clk 0:01:57]} 18. Qg2 {[%clk 0:01:35]}  Qa5 {[%clk 0:01:40]} 19. Rhe1 {[%clk 0:01:27]}  Qxa2 {[%clk 0:01:19]} 20. Nf6+ {[%clk 0:01:17]}  Nxf6 {[%clk 0:01:08]} 21. exf6+ {[%clk 0:01:18]}  Kd8 {[%clk 0:01:08]} 22. Qxb7 {[%clk 0:01:15]}  Rc8 {[%clk 0:00:47]} 23. Re8+ {[%clk 0:01:13]}  Kxe8 {[%clk 0:00:46]} 24. Qxc8# {[%clk 0:01:14]} 1-0


[Site "https://www.chess.com"]

[Event "Titled Tuesday Blitz September 13 Early 2022"]
[White "Kosteniuk, Alexandra"]
[Black "Kalogeris, Ioannis"]
[WhiteFideId "4128125"]
[BlackFideId "4239563"]
[WhiteElo "2469"]
[BlackElo "2291"]
[Result "1-0"]
[Round "08"]
[TimeControl "180+1"]
[Date "2022.09.13"]
[WhiteClock "0:01:03"]
[BlackClock "0:00:15"]

1. e4 {[%clk 0:03:00]}  e5 {[%clk 0:02:59]} 2. Nf3 {[%clk 0:03:00]}  Nc6 {[%clk 0:03:00]} 3. Bc4 {[%clk 0:03:00]}  Bc5 {[%clk 0:03:00]} 4. c3 {[%clk 0:03:00]}  Nf6 {[%clk 0:03:00]} 5. d4 {[%clk 0:03:00]}  exd4 {[%clk 0:03:00]} 6. b4 {[%clk 0:03:01]}  Bb6 {[%clk 0:03:00]} 7. e5 {[%clk 0:02:55]}  d5 {[%clk 0:03:00]} 8. exf6 {[%clk 0:02:51]}  dxc4 {[%clk 0:02:59]} 9. Qe2+ {[%clk 0:02:47]}  Be6 {[%clk 0:02:44]} 10. b5 {[%clk 0:02:48]}  d3 {[%clk 0:02:22]} 11. Qe4 {[%clk 0:02:47]}  Nb4 {[%clk 0:02:06]} 12. O-O {[%clk 0:02:34]}  Nc2 {[%clk 0:01:13]} 13. fxg7 {[%clk 0:02:32]}  Rg8 {[%clk 0:01:13]} 14. Qxh7 {[%clk 0:02:31]}  Kd7 {[%clk 0:01:12]} 15. Qh6 {[%clk 0:02:06]}  f6 {[%clk 0:01:09]} 16. Nbd2 {[%clk 0:02:03]}  Qe7 {[%clk 0:00:52]} 17. Ne4 {[%clk 0:02:03]}  Nxa1 {[%clk 0:00:32]} 18. Nxf6+ {[%clk 0:02:03]}  Kc8 {[%clk 0:00:32]} 19. Nxg8 {[%clk 0:02:00]}  Bxg8 {[%clk 0:00:33]} 20. Bg5 {[%clk 0:01:55]}  Qf7 {[%clk 0:00:31]} 21. Ne5 {[%clk 0:01:41]}  Qf5 {[%clk 0:00:24]} 22. Qh8 {[%clk 0:01:37]}  Qh7 {[%clk 0:00:23]} 23. Rxa1 {[%clk 0:01:31]}  a6 {[%clk 0:00:23]} 24. Ng6 {[%clk 0:01:21]}  axb5 {[%clk 0:00:20]} 25. Nf8 {[%clk 0:01:15]}  Rxa2 {[%clk 0:00:15]} 26. Rxa2 {[%clk 0:01:05]}  Qe4 {[%clk 0:00:15]} 27. Ra8# {[%clk 0:01:03]} 1-0


[Site "https://www.chess.com"]

[Event "Titled Tuesday Blitz September 13 Early 2022"]
[White "Martinez Alcantara, Jose Eduardo"]
[Black "Movahed, Sina"]
[WhiteFideId "3805662"]
[BlackFideId "42520835"]
[WhiteElo "2973"]
[BlackElo "2885"]
[Result "1-0"]
[Round "08"]
[TimeControl "180+1"]
[Date "2022.09.13"]
[WhiteClock "0:00:08"]
[BlackClock "0:00:10"]

1. e4 {[%clk 0:03:00]}  c5 {[%clk 0:03:00]} 2. Nf3 {[%clk 0:03:01]}  d6 {[%clk 0:03:00]} 3. c3 {[%clk 0:03:01]}  Nf6 {[%clk 0:03:00]} 4. h3 {[%clk 0:03:02]}  Nc6 {[%clk 0:02:59]} 5. Bd3 {[%clk 0:03:02]}  g6 {[%clk 0:02:57]} 6. Bc2 {[%clk 0:03:02]}  e5 {[%clk 0:02:56]} 7. d4 {[%clk 0:03:03]}  cxd4 {[%clk 0:02:56]} 8. cxd4 {[%clk 0:03:04]}  exd4 {[%clk 0:02:57]} 9. Nxd4 {[%clk 0:03:04]}  Nxd4 {[%clk 0:02:58]} 10. Qxd4 {[%clk 0:03:04]}  Bg7 {[%clk 0:02:59]} 11. O-O {[%clk 0:03:05]}  O-O {[%clk 0:02:59]} 12. Nc3 {[%clk 0:03:04]}  Re8 {[%clk 0:03:00]} 13. Qb4 {[%clk 0:03:04]}  a5 {[%clk 0:03:00]} 14. Qb5 {[%clk 0:02:51]}  Re5 {[%clk 0:02:59]} 15. Qd3 {[%clk 0:02:49]}  Be6 {[%clk 0:02:28]} 16. Bf4 {[%clk 0:02:47]}  Rc5 {[%clk 0:02:29]} 17. Rfd1 {[%clk 0:02:45]}  d5 {[%clk 0:02:25]} 18. Be3 {[%clk 0:02:37]}  Rcc8 {[%clk 0:02:18]} 19. Qb5 {[%clk 0:02:13]}  Bd7 {[%clk 0:02:09]} 20. Qe2 {[%clk 0:02:13]}  dxe4 {[%clk 0:02:02]} 21. Nxe4 {[%clk 0:02:04]}  Qe7 {[%clk 0:01:43]} 22. Bg5 {[%clk 0:01:10]}  Rxc2 {[%clk 0:01:15]} 23. Nxf6+ {[%clk 0:01:10]}  Bxf6 {[%clk 0:01:14]} 24. Qxe7 {[%clk 0:01:08]}  Bxe7 {[%clk 0:01:14]} 25. Bxe7 {[%clk 0:01:09]}  Bc6 {[%clk 0:01:15]} 26. Bf6 {[%clk 0:00:58]}  h6 {[%clk 0:01:12]} 27. Re1 {[%clk 0:00:56]}  g5 {[%clk 0:01:05]} 28. Re7 {[%clk 0:00:48]}  Kh7 {[%clk 0:01:03]} 29. Rae1 {[%clk 0:00:48]}  Kg6 {[%clk 0:01:03]} 30. Bc3 {[%clk 0:00:48]}  a4 {[%clk 0:01:02]} 31. a3 {[%clk 0:00:48]}  Rd8 {[%clk 0:01:00]} 32. R7e3 {[%clk 0:00:32]}  Rd6 {[%clk 0:00:52]} 33. h4 {[%clk 0:00:32]}  Rd5 {[%clk 0:00:48]} 34. Rg3 {[%clk 0:00:28]}  Rf5 {[%clk 0:00:46]} 35. f3 {[%clk 0:00:28]}  Rf4 {[%clk 0:00:36]} 36. hxg5 {[%clk 0:00:26]}  hxg5 {[%clk 0:00:37]} 37. Re5 {[%clk 0:00:23]}  f6 {[%clk 0:00:37]} 38. Re6 {[%clk 0:00:23]}  Rc1+ {[%clk 0:00:33]} 39. Kf2 {[%clk 0:00:23]}  Bd7 {[%clk 0:00:30]} 40. Rd6 {[%clk 0:00:20]}  Bb5 {[%clk 0:00:23]} 41. Bd2 {[%clk 0:00:17]}  Rc2 {[%clk 0:00:23]} 42. Kg1 {[%clk 0:00:17]}  Rh4 {[%clk 0:00:21]} 43. Bxg5 {[%clk 0:00:12]}  Rhc4 {[%clk 0:00:18]} 44. Bxf6+ {[%clk 0:00:12]}  Kf7 {[%clk 0:00:17]} 45. Bc3 {[%clk 0:00:12]}  Ke7 {[%clk 0:00:14]} 46. Rh6 {[%clk 0:00:09]}  Be8 {[%clk 0:00:14]} 47. Rg7+ {[%clk 0:00:09]}  Bf7 {[%clk 0:00:14]} 48. Rhh7 {[%clk 0:00:09]}  Rf4 {[%clk 0:00:15]} 49. Rh6 {[%clk 0:00:09]}  b5 {[%clk 0:00:14]} 50. Rb6 {[%clk 0:00:09]}  Rf5 {[%clk 0:00:14]} 51. Rb7+ {[%clk 0:00:09]}  Ke6 {[%clk 0:00:14]} 52. Rb6+ {[%clk 0:00:07]}  Ke7 {[%clk 0:00:14]} 53. Rh7 {[%clk 0:00:08]}  Rc1+ {[%clk 0:00:13]} 54. Kh2 {[%clk 0:00:08]}  Rc2 {[%clk 0:00:14]} 55. Bb4+ {[%clk 0:00:08]}  Kd7 {[%clk 0:00:13]} 56. Rb7+ {[%clk 0:00:08]}  Ke6 {[%clk 0:00:10]} 57. Rh6+ {[%clk 0:00:07]}  Kd5 {[%clk 0:00:10]} 58. Rd7+ {[%clk 0:00:06]}  Kc4 {[%clk 0:00:10]} 59. Rc6+ {[%clk 0:00:06]}  Kb3 {[%clk 0:00:10]} 60. Rxc2 {[%clk 0:00:06]}  Kxc2 {[%clk 0:00:10]} 61. Bc3 {[%clk 0:00:07]}  Bc4 {[%clk 0:00:11]} 62. Rd2+ {[%clk 0:00:05]}  Kb3 {[%clk 0:00:10]} 63. Rf2 {[%clk 0:00:06]}  Rd5 {[%clk 0:00:10]} 64. g4 {[%clk 0:00:06]}  Rd3 {[%clk 0:00:10]} 65. f4 {[%clk 0:00:06]}  Rxc3 {[%clk 0:00:10]} 66. bxc3 {[%clk 0:00:06]}  Kxc3 {[%clk 0:00:11]} 67. f5 {[%clk 0:00:07]}  Kb3 {[%clk 0:00:09]} 68. g5 {[%clk 0:00:07]}  Kxa3 {[%clk 0:00:09]} 69. g6 {[%clk 0:00:07]}  b4 {[%clk 0:00:09]} 70. f6 {[%clk 0:00:08]}  b3 {[%clk 0:00:10]} 71. f7 {[%clk 0:00:09]}  b2 {[%clk 0:00:10]} 72. f8=Q+ {[%clk 0:00:10]}  Ka2 {[%clk 0:00:10]} 73. Qb4 {[%clk 0:00:09]}  Bb3 {[%clk 0:00:10]} 74. g7 {[%clk 0:00:09]}  a3 {[%clk 0:00:10]} 75. Qxb3+ {[%clk 0:00:08]}  Kxb3 {[%clk 0:00:10]} 76. g8=Q+ {[%clk 0:00:08]} 1-0


[Site "https://www.chess.com"]

[Event "Titled Tuesday Blitz September 13 Early 2022"]
[White "Paravyan, David"]
[Black "assezde36"]
[WhiteFideId "4194985"]
[WhiteElo "2555"]
[BlackElo "2775"]
[Result "1-0"]
[Round "08"]
[TimeControl "180+1"]
[Date "2022.09.13"]
[WhiteClock "0:00:07"]
[BlackClock "0:00:07"]

1. e4 {[%clk 0:03:00]}  d5 {[%clk 0:02:59]} 2. exd5 {[%clk 0:02:59]}  Qxd5 {[%clk 0:03:00]} 3. Nc3 {[%clk 0:03:00]}  Qa5 {[%clk 0:03:01]} 4. d4 {[%clk 0:03:00]}  Nf6 {[%clk 0:03:01]} 5. Nf3 {[%clk 0:03:00]}  Bf5 {[%clk 0:03:01]} 6. Ne5 {[%clk 0:03:00]}  c6 {[%clk 0:02:55]} 7. h4 {[%clk 0:02:59]}  Nbd7 {[%clk 0:02:51]} 8. Nc4 {[%clk 0:02:59]}  Qc7 {[%clk 0:02:48]} 9. Ne3 {[%clk 0:02:54]}  Be6 {[%clk 0:02:39]} 10. h5 {[%clk 0:02:18]}  O-O-O {[%clk 0:02:34]} 11. a4 {[%clk 0:02:14]}  Nb6 {[%clk 0:02:15]} 12. a5 {[%clk 0:02:14]}  Nbd5 {[%clk 0:02:15]} 13. a6 {[%clk 0:02:13]}  b6 {[%clk 0:02:16]} 14. Ncxd5 {[%clk 0:01:52]}  Bxd5 {[%clk 0:02:02]} 15. Bd3 {[%clk 0:01:25]}  e5 {[%clk 0:01:48]} 16. Nxd5 {[%clk 0:01:15]}  Rxd5 {[%clk 0:01:47]} 17. dxe5 {[%clk 0:01:08]}  Qxe5+ {[%clk 0:01:46]} 18. Qe2 {[%clk 0:01:06]}  Bb4+ {[%clk 0:01:43]} 19. Kf1 {[%clk 0:01:04]}  Re8 {[%clk 0:01:33]} 20. Qxe5 {[%clk 0:00:46]}  Rexe5 {[%clk 0:01:34]} 21. Be3 {[%clk 0:00:41]}  Rxh5 {[%clk 0:01:33]} 22. Rxh5 {[%clk 0:00:40]}  Rxh5 {[%clk 0:01:33]} 23. Ra4 {[%clk 0:00:35]}  Bc5 {[%clk 0:01:25]} 24. g4 {[%clk 0:00:28]}  Rh1+ {[%clk 0:01:09]} 25. Kg2 {[%clk 0:00:28]}  Rb1 {[%clk 0:01:10]} 26. Bxc5 {[%clk 0:00:15]}  bxc5 {[%clk 0:01:11]} 27. g5 {[%clk 0:00:16]}  Nd5 {[%clk 0:01:07]} 28. Rh4 {[%clk 0:00:16]}  Rxb2 {[%clk 0:00:47]} 29. Rxh7 {[%clk 0:00:17]}  Nf4+ {[%clk 0:00:39]} 30. Kf3 {[%clk 0:00:16]}  Nxd3 {[%clk 0:00:39]} 31. cxd3 {[%clk 0:00:17]}  Rb3 {[%clk 0:00:39]} 32. Ke2 {[%clk 0:00:13]}  Rb4 {[%clk 0:00:34]} 33. Rxg7 {[%clk 0:00:11]}  Rf4 {[%clk 0:00:34]} 34. Ke3 {[%clk 0:00:11]}  Rf5 {[%clk 0:00:32]} 35. f4 {[%clk 0:00:11]}  Kd7 {[%clk 0:00:27]} 36. Ke4 {[%clk 0:00:10]}  Ke6 {[%clk 0:00:27]} 37. g6 {[%clk 0:00:05]}  fxg6 {[%clk 0:00:06]} 38. Rxg6+ {[%clk 0:00:05]}  Rf6 {[%clk 0:00:06]} 39. f5+ {[%clk 0:00:06]}  Kf7 {[%clk 0:00:06]} 40. Rxf6+ {[%clk 0:00:05]}  Kxf6 {[%clk 0:00:07]} 41. Kf4 {[%clk 0:00:06]}  Kf7 {[%clk 0:00:05]} 42. Ke5 {[%clk 0:00:07]}  Ke7 {[%clk 0:00:06]} 43. f6+ {[%clk 0:00:07]}  Kf7 {[%clk 0:00:07]} 44. Kf5 {[%clk 0:00:07]} 1-0


[Site "https://www.chess.com"]

[Event "Titled Tuesday Blitz September 13 Early 2022"]
[White "Piesik, Piotr"]
[Black "Demchenko, Anton"]
[WhiteFideId "1136194"]
[BlackFideId "4160258"]
[WhiteElo "2221"]
[BlackElo "2539"]
[Result "0-1"]
[Round "08"]
[TimeControl "180+1"]
[Date "2022.09.13"]
[WhiteClock "0:00:26"]
[BlackClock "0:00:11"]

1. Nf3 {[%clk 0:03:00]}  Nf6 {[%clk 0:03:00]} 2. g3 {[%clk 0:03:01]}  g6 {[%clk 0:02:59]} 3. b3 {[%clk 0:03:00]}  Bg7 {[%clk 0:03:00]} 4. Bb2 {[%clk 0:03:00]}  d6 {[%clk 0:03:01]} 5. d4 {[%clk 0:03:00]}  O-O {[%clk 0:03:01]} 6. Bg2 {[%clk 0:03:00]}  b5 {[%clk 0:03:01]} 7. O-O {[%clk 0:02:59]}  Bb7 {[%clk 0:03:01]} 8. a4 {[%clk 0:02:58]}  b4 {[%clk 0:03:00]} 9. c4 {[%clk 0:02:53]}  bxc3 {[%clk 0:02:58]} 10. Nxc3 {[%clk 0:02:53]}  Nbd7 {[%clk 0:02:57]} 11. b4 {[%clk 0:02:51]}  Ne4 {[%clk 0:02:51]} 12. Qc2 {[%clk 0:02:41]}  Nxc3 {[%clk 0:02:44]} 13. Bxc3 {[%clk 0:02:42]}  Nf6 {[%clk 0:02:41]} 14. b5 {[%clk 0:02:40]}  a6 {[%clk 0:02:40]} 15. bxa6 {[%clk 0:02:37]}  Rxa6 {[%clk 0:02:38]} 16. a5 {[%clk 0:02:29]}  Qa8 {[%clk 0:02:31]} 17. Nh4 {[%clk 0:02:25]}  Bxg2 {[%clk 0:02:31]} 18. Nxg2 {[%clk 0:02:26]}  Ne4 {[%clk 0:02:32]} 19. Ra3 {[%clk 0:02:17]}  Nxc3 {[%clk 0:02:29]} 20. Qxc3 {[%clk 0:02:18]}  c5 {[%clk 0:02:29]} 21. Qe3 {[%clk 0:02:15]}  Bxd4 {[%clk 0:02:16]} 22. Qxe7 {[%clk 0:02:14]}  Re8 {[%clk 0:02:17]} 23. Qc7 {[%clk 0:02:08]}  Rxe2 {[%clk 0:02:11]} 24. Nf4 {[%clk 0:02:08]}  Re8 {[%clk 0:02:02]} 25. Rb1 {[%clk 0:02:01]}  Qe4 {[%clk 0:00:45]} 26. Rf1 {[%clk 0:01:49]}  Rea8 {[%clk 0:00:42]} 27. Rb3 {[%clk 0:01:26]}  Qc6 {[%clk 0:00:35]} 28. Rb8+ {[%clk 0:01:21]}  Rxb8 {[%clk 0:00:35]} 29. Qxb8+ {[%clk 0:01:22]}  Kg7 {[%clk 0:00:35]} 30. Qd8 {[%clk 0:01:12]}  Bf6 {[%clk 0:00:31]} 31. Qb8 {[%clk 0:01:08]}  Rxa5 {[%clk 0:00:32]} 32. h4 {[%clk 0:01:06]}  Be5 {[%clk 0:00:28]} 33. Nd3 {[%clk 0:00:58]}  Bd4 {[%clk 0:00:28]} 34. h5 {[%clk 0:00:53]}  Ra3 {[%clk 0:00:28]} 35. h6+ {[%clk 0:00:46]}  Kxh6 {[%clk 0:00:28]} 36. Qf8+ {[%clk 0:00:45]}  Bg7 {[%clk 0:00:22]} 37. Qxf7 {[%clk 0:00:44]}  Rxd3 {[%clk 0:00:20]} 38. Qf4+ {[%clk 0:00:44]}  g5 {[%clk 0:00:20]} 39. Qf5 {[%clk 0:00:39]}  Qf3 {[%clk 0:00:18]} 40. Qh3+ {[%clk 0:00:33]}  Kg6 {[%clk 0:00:17]} 41. Re1 {[%clk 0:00:26]}  g4 {[%clk 0:00:11]} 0-1


[Site "https://www.chess.com"]

[Event "Titled Tuesday Blitz September 13 Early 2022"]
[White "Samsonkin, Artiom"]
[Black "Moksh Amit Doshi"]
[WhiteFideId "13503111"]
[BlackFideId "25064967"]
[WhiteElo "2524"]
[BlackElo "2245"]
[Result "1-0"]
[Round "08"]
[TimeControl "180+1"]
[Date "2022.09.13"]
[WhiteClock "0:00:56"]
[BlackClock "0:01:26"]

1. d4 {[%clk 0:03:00]}  Nf6 {[%clk 0:02:55]} 2. Nf3 {[%clk 0:02:58]}  d5 {[%clk 0:02:54]} 3. Bf4 {[%clk 0:02:58]}  Bf5 {[%clk 0:02:53]} 4. e3 {[%clk 0:02:57]}  e6 {[%clk 0:02:53]} 5. c4 {[%clk 0:02:56]}  Bxb1 {[%clk 0:02:53]} 6. Qxb1 {[%clk 0:02:57]}  Bb4+ {[%clk 0:02:52]} 7. Kd1 {[%clk 0:02:56]}  Bd6 {[%clk 0:02:49]} 8. Bg5 {[%clk 0:02:56]}  O-O {[%clk 0:02:45]} 9. Bd3 {[%clk 0:02:43]}  h6 {[%clk 0:02:42]} 10. Bh4 {[%clk 0:02:31]}  c5 {[%clk 0:02:39]} 11. cxd5 {[%clk 0:02:26]}  exd5 {[%clk 0:02:39]} 12. dxc5 {[%clk 0:02:25]}  Bxc5 {[%clk 0:02:40]} 13. Ke2 {[%clk 0:02:25]}  Qb6 {[%clk 0:02:34]} 14. Rd1 {[%clk 0:02:20]}  Ne4 {[%clk 0:02:32]} 15. Bxe4 {[%clk 0:02:14]}  dxe4 {[%clk 0:02:33]} 16. Qxe4 {[%clk 0:02:14]}  Qxb2+ {[%clk 0:02:29]} 17. Kf1 {[%clk 0:02:15]}  Qb5+ {[%clk 0:02:26]} 18. Kg1 {[%clk 0:02:13]}  Qc6 {[%clk 0:02:27]} 19. Qg4 {[%clk 0:02:08]}  Na6 {[%clk 0:02:23]} 20. Rac1 {[%clk 0:02:05]}  Rac8 {[%clk 0:02:21]} 21. Nd4 {[%clk 0:02:00]}  Qa4 {[%clk 0:02:18]} 22. Bf6 {[%clk 0:01:57]}  g6 {[%clk 0:02:15]} 23. Qh3 {[%clk 0:01:41]}  Kh7 {[%clk 0:02:14]} 24. Nf5 {[%clk 0:01:41]}  h5 {[%clk 0:01:59]} 25. Nd4 {[%clk 0:01:24]}  Bxd4 {[%clk 0:01:51]} 26. Bxd4 {[%clk 0:01:18]}  Nb4 {[%clk 0:01:47]} 27. Qf3 {[%clk 0:01:03]}  Qa6 {[%clk 0:01:35]} 28. Rxc8 {[%clk 0:01:02]}  Rxc8 {[%clk 0:01:27]} 29. Qxf7+ {[%clk 0:01:01]}  Kh6 {[%clk 0:01:28]} 30. Bg7+ {[%clk 0:00:56]}  Kg5 {[%clk 0:01:26]} 31. Qf4# {[%clk 0:00:56]} 1-0


[Site "https://www.chess.com"]